bitfinex/quotes_ETHUSD_20220202
["timestamp","ask_amount","ask_price","bid_price","bid_amount"]
[1643825438015,0.18148621,2679.3,2678.9,0.1865]
[1643825438614,0.18148621,2679.3,2679.1,0.00567176]
[1643825440568,0.18148621,2679.3,2678.9,0.1865]
[1643825440768,0.18148621,2679.3,2679.1,0.00471755]
[1643825441369,0.00471691,2679.4,2679.1,0.00471755]
[1643825442372,0.17830041,2679.3,2679.1,0.00471755]
[1643825442770,0.17830041,2679.3,2678.8,0.04035807]
[1643825443172,0.17830041,2679.3,2679.1,0.00471755]
[1643825444221,0.17830041,2679.3,2678.5,0.01887423]
[1643825444222,3.4,2679.1,2678.5,0.01887423]
[1643825444422,1.0,2678.8,2678.5,0.02269186]
[1643825444621,1.0,2678.8,2678.1,0.1865]
[1643825444622,4.29372561,2678.7,2678.1,0.1865]
[1643825444820,1.1865,2678.6,2678.1,0.1865]
[1643825445021,0.14697278,2678.5,2678.1,0.1865]
[1643825445620,5.3555,2678.6,2678.1,0.1865]
[1643825445823,5.169,2678.6,2678.1,0.1865]
[1643825446420,5.169,2678.6,2678.1,1.04060583]
[1643825446619,5.35195558,2678.6,2678.1,1.04060583]
[1643825446921,5.35195558,2678.6,2678.1,0.1865]
[1643825447122,5.169,2678.6,2678.1,0.1865]
[1643825447563,0.19090028,2679.1,2678.1,0.1865]
[1643825447769,0.19090028,2679.1,2677.8,0.1865]
[1643825447968,0.00567841,2678.6,2678.2,0.0056793]
[1643825448166,0.00567841,2678.6,2678.3,0.92031301]
[1643825448969,5.169,2679.2,2678.3,1.10681301]
[1643825449167,5.169,2679.2,2678.4,0.00195736]
[1643825449372,0.00567853,2678.6,2678.4,2.145832]
[1643825449571,0.00567853,2678.6,2678.4,0.54095736]
[1643825449771,7.853e-05,2678.6,2678.5,7.87488089]
[1643825449972,7.853e-05,2678.6,2678.5,8.41388089]
[1643825450175,0.00362764,2680.1,2678.5,8.41388089]
[1643825450176,0.1865,2680.0,2678.5,10.41388088]
[1643825450379,0.1865,2680.0,2678.6,0.93312]
[1643825450574,0.1865,2680.0,2679.3,0.94677105]
[1643825450773,0.1865,2680.0,2678.7,2.98310286]
[1643825450774,0.1865,2680.3,2678.8,1.13]
[1643825450973,0.14323677,2679.4,2678.9,0.1865]
[1643825451640,0.14323677,2679.4,2679.0,0.00195719]
[1643825451841,0.1865,2679.8,2679.0,0.00195719]
[1643825452041,0.1865,2680.1,2679.0,0.00195719]
[1643825452345,1.88301755,2680.0,2679.0,0.00195719]
[1643825452546,0.1865,2679.9,2679.0,0.00195719]
[1643825452742,0.4865,2679.9,2679.0,0.00195719]
[1643825452948,0.17901886,2679.1,2678.8,1.82774884]
[1643825453143,0.17901886,2679.1,2678.7,0.1865]
[1643825453344,0.17901886,2679.1,2678.5,0.1865]
[1643825453944,0.1865,2679.6,2678.5,0.1865]
[1643825454148,0.00567833,2678.9,2678.6,0.70962474]
[1643825454345,0.00567833,2678.9,2678.7,0.1865]
[1643825456966,0.00567833,2678.9,2678.6,0.70962474]
[1643825457766,0.00484475,2678.9,2678.6,0.70962474]
[1643825458366,0.00484475,2678.9,2678.7,2.26768234]
[1643825458567,0.00484475,2678.9,2678.7,2.37481168]
[1643825459617,0.00484475,2678.9,2678.7,2.39481168]
[1643825459818,0.00484475,2678.9,2678.7,0.2065]
[1643825460018,0.00484475,2678.9,2678.7,2.26836198]
[1643825460218,0.00484471,2678.9,2678.7,0.2065]
[1643825461221,4.471e-05,2678.9,2678.8,5.73605]
[1643825461421,4.471e-05,2678.9,2678.8,9.28775566]
[1643825461422,4.99e-06,2678.9,2678.8,9.28775566]
[1643825461621,4.99e-06,2678.9,2678.8,8.58775566]
[1643825462421,4.99e-06,2678.9,2678.8,7.58775567]
[1643825462668,0.17370099,2679.8,2679.0,0.93298]
[1643825462868,0.17370099,2679.8,2679.1,0.539]
[1643825463068,0.17370099,2679.8,2679.1,0.559]
[1643825464271,0.17370099,2679.8,2679.5,0.89217521]
[1643825465073,0.17937856,2679.8,2679.5,0.89217521]
[1643825466316,0.17891946,2679.8,2679.5,0.89217521]
[1643825467714,0.00521847,2679.8,2679.5,0.89217521]
[1643825468318,0.1865,2680.3,2679.5,0.89217521]
[1643825468519,0.00521847,2679.8,2679.5,0.89217521]
[1643825469514,0.17365862,2679.7,2679.5,0.89217521]
[1643825469716,0.17365862,2679.7,2679.6,3.05193751]
[1643825469914,1.75648916,2679.7,2679.6,3.05193751]
[1643825470178,0.17365862,2679.7,2679.6,3.05]
[1643825471875,0.00528562,2679.8,2679.6,3.05]
[1643825472076,0.00528562,2679.8,2679.6,3.07]
[1643825473075,0.1865,2680.3,2679.6,3.07]
[1643825473076,0.17737481,2680.0,2679.6,3.07]
[1643825473276,0.00481513,2679.8,2679.7,0.02193751]
[1643825473476,0.00481513,2679.8,2679.7,0.00193751]
[1643825473913,0.00481513,2679.8,2679.6,3.07]
[1643825474313,0.17737481,2680.0,2679.6,3.07]
[1643825474514,1.58271149,2679.9,2679.7,0.02]
[1643825474713,1.58751676,2679.9,2679.7,0.02]
[1643825474915,0.00480527,2679.9,2679.7,0.02]
[1643825475515,0.17737481,2680.0,2679.7,0.02]
[1643825475715,1.58752577,2679.9,2679.7,0.02]
[1643825475916,0.00480523,2679.9,2679.7,0.02]
[1643825476716,0.17737481,2680.0,2679.7,0.02]
[1643825476915,1.58796768,2679.9,2679.7,0.02]
[1643825477116,0.00524345,2679.9,2679.7,0.02]
[1643825477972,0.17737481,2680.0,2679.7,0.02]
[1643825478176,0.00526076,2679.9,2679.7,0.02]
[1643825478978,5.17259851,2680.4,2679.7,0.02]
[1643825479175,1.58254698,2680.3,2679.7,0.02]
[1643825479375,0.00526076,2679.9,2679.7,0.02]
[1643825480376,5.17259851,2680.4,2680.0,0.84550325]
[1643825480576,1.58259779,2680.3,2680.0,0.84550325]
[1643825481625,1.58771722,2680.3,2680.0,0.84550325]
[1643825481818,1.58259779,2680.2,2680.0,0.84550325]
[1643825482420,1.58259779,2680.2,2679.7,0.02]
[1643825482618,1.58108474,2680.2,2679.7,0.02]
[1643825482819,5.17259851,2680.4,2679.4,0.20843751]
[1643825483024,0.00511946,2680.2,2679.4,0.20843751]
[1643825483221,0.02202044,2680.1,2679.4,0.20843751]
[1643825483420,0.02202044,2680.1,2679.5,3.31249541]
[1643825483620,0.02202044,2680.1,2679.6,1.29469996]
[1643825483819,0.02202044,2680.1,2679.7,2.71499307]
[1643825484019,0.02202044,2680.1,2679.8,0.2065]
[1643825484224,0.02202044,2680.1,2679.9,2.61729328]
[1643825484421,0.02202044,2680.1,2680.0,4.52212747]
[1643825485067,0.02202044,2680.1,2680.0,3.8]
[1643825486169,0.02202044,2680.1,2680.0,4.56337621]
[1643825489320,0.02202044,2680.1,2680.0,3.8]
[1643825489525,0.02202044,2680.1,2679.8,0.02]
[1643825489721,0.02202044,2680.1,2679.6,0.08819997]
[1643825491123,0.17385211,2679.7,2679.6,4.93819997]
[1643825491525,0.00482962,2680.0,2679.6,4.93819997]
[1643825491724,0.00482962,2680.0,2679.7,0.02]
[1643825492869,0.00483032,2680.0,2679.7,0.02]
[1643825493068,0.00483032,2680.0,2679.7,0.95278]
[1643825493271,0.02182391,2679.9,2679.7,0.95278]
[1643825493971,0.02182391,2679.9,2679.8,6.37375126]
[1643825495471,0.02182391,2679.9,2679.8,6.91275126]
[1643825495873,2.391e-05,2679.9,2679.8,9.09880125]
[1643825496072,2.391e-05,2679.9,2679.8,9.39880125]
[1643825496326,0.01939348,2680.5,2680.0,5.5548]
[1643825496327,2.89e-05,2680.5,2680.0,5.5548]
[1643825496528,2.89e-05,2680.5,2680.3,9.59700999]
[1643825496727,2.89e-05,2680.5,2680.3,9.89700999]
[1643825496928,2.89e-05,2680.5,2680.4,7.089]
[1643825497329,2.89e-05,2680.5,2680.4,7.27505]
[1643825497533,0.1865,2681.6,2680.4,7.27505]
[1643825497731,0.17498,2681.6,2681.3,0.9498827]
[1643825497929,0.17498,2681.6,2681.0,0.539]
[1643825498128,0.17498,2681.6,2681.2,0.76816646]
[1643825498829,0.00286808,2681.4,2681.2,0.76816646]
[1643825499428,0.00286808,2681.4,2681.2,0.78816646]
[1643825500778,0.00286808,2681.4,2681.2,0.02]
[1643825500983,0.00286808,2681.4,2680.9,0.02]
[1643825501182,0.00524971,2681.4,2680.9,0.02]
[1643825501382,0.1864,2681.3,2680.8,0.1864]
[1643825502282,0.00531355,2681.2,2680.8,0.1864]
[1643825502581,0.1864,2681.1,2680.8,0.1864]
[1643825502783,1.58229278,2681.0,2680.8,0.1864]
[1643825502983,4.43971027,2680.9,2680.4,0.00531517]
[1643825503182,4.43971027,2680.9,2679.8,0.02]
[1643825503183,1.58229278,2680.8,2679.8,0.02]
[1643825503382,0.19197321,2679.9,2679.8,0.02]
[1643825503581,0.19197321,2679.9,2679.7,0.02]
[1643825503828,3.57553435,2680.7,2679.7,0.91177384]
[1643825504026,1.58262633,2680.6,2679.7,0.91177384]
[1643825504226,2.20766728,2680.5,2679.7,0.02]
[1643825504427,1.58262633,2680.4,2679.7,0.02]
[1643825504622,1.58262633,2680.4,2680.0,0.00195929]
[1643825505426,0.18801186,2680.3,2680.0,0.00195929]
[1643825505624,1.58262633,2680.2,2679.6,0.92184501]
[1643825505823,0.17532652,2679.8,2679.6,0.92184501]
[1643825506023,0.1865,2680.5,2679.6,0.92184501]
[1643825506324,1.5826542,2680.4,2679.6,0.08819997]
[1643825506525,2.46583846,2680.3,2679.4,0.15513748]
[1643825506726,1.5826542,2680.2,2679.4,0.13319997]
[1643825507125,1.5826542,2680.2,2679.9,0.0047844]
[1643825507326,0.1446495,2680.1,2679.9,0.0047844]
[1643825507571,1.5826542,2680.0,2679.9,0.0047844]
[1643825507975,1.5826542,2680.0,2679.4,0.89177658]
[1643825508175,0.19275923,2679.6,2679.4,0.89177658]
[1643825508372,0.1865,2680.3,2679.4,0.89177658]
[1643825508573,1.58271967,2680.2,2679.4,0.89177658]
[1643825509275,1.58271967,2680.2,2679.4,0.91177658]
[1643825509472,1.58271967,2680.2,2679.7,0.00521835]
[1643825509773,0.19244477,2680.1,2679.7,0.00521835]
[1643825509972,1.58271967,2680.0,2679.7,0.00521835]
[1643825510775,1.58271967,2680.0,2679.7,0.00521832]
[1643825512020,1.58271967,2680.0,2679.7,0.00519237]
[1643825512822,1.58271967,2680.0,2679.5,0.02]
[1643825513126,0.16963284,2679.6,2679.5,0.02]
[1643825513423,2.05224506,2680.2,2679.4,1.07688404]
[1643825513623,1.58275113,2680.1,2679.5,0.02]
[1643825513824,1.58275113,2680.0,2679.5,0.02]
[1643825514025,1.58275113,2679.9,2679.4,0.13319997]
[1643825514325,1.58275113,2679.8,2679.7,0.00483976]
[1643825514525,0.18505118,2679.8,2679.7,0.00483976]
[1643825514925,1.76780231,2679.8,2679.7,2.25483976]
[1643825515169,0.18505118,2679.8,2679.7,2.25]
[1643825515372,1.76780518,2679.8,2679.7,2.25]
[1643825516368,1.582754,2679.8,2679.7,2.25]
[1643825516568,1.582754,2680.2,2679.7,2.25]
[1643825516769,1.582754,2680.2,2679.8,0.02]
[1643825517771,0.16939381,2680.1,2679.8,0.02]
[1643825517969,0.16939381,2680.1,2679.9,0.00513828]
[1643825517970,1.582754,2680.0,2679.9,0.00513828]
[1643825518171,1.582754,2680.0,2679.7,2.25]
[1643825518474,0.01,2679.9,2679.7,2.25]
[1643825518919,0.16939381,2680.1,2679.7,2.25]
[1643825519121,1.58269431,2680.0,2679.7,2.25]
[1643825519321,0.01,2679.9,2679.7,2.25]
[1643825519821,0.16939381,2680.1,2679.7,2.25]
[1643825520021,1.58269394,2680.0,2679.7,2.25]
[1643825520222,0.01,2679.9,2679.7,2.25]
[1643825520621,0.16939381,2680.1,2679.7,2.25]
[1643825520824,1.58268197,2680.0,2679.7,2.25]
[1643825521025,0.01,2679.9,2679.7,2.25]
[1643825521424,0.16939381,2680.1,2679.5,0.1865]
[1643825521622,0.16939381,2680.1,2679.4,0.13319997]
[1643825521822,1.58274036,2680.0,2679.4,0.13319997]
[1643825522025,0.01,2679.9,2679.4,0.13319997]
[1643825522223,1.58274036,2679.8,2679.4,0.13319997]
[1643825522423,0.01,2679.7,2679.4,0.13319997]
[1643825522667,0.01,2679.7,2679.5,0.00551284]
[1643825522867,0.16939381,2680.1,2679.5,0.00551284]
[1643825522868,0.17939381,2680.1,2679.5,0.00551284]
[1643825523069,1.58276349,2680.0,2679.5,0.00551284]
[1643825523272,0.01,2679.9,2679.5,0.00551284]
[1643825523469,1.58276349,2679.8,2679.4,0.09871281]
[1643825523674,0.01,2679.7,2679.4,0.09871281]
[1643825523871,0.01,2679.7,2679.0,4.89296751]
[1643825523872,1.5829128,2679.6,2679.1,0.1965]
[1643825524073,3.57534091,2679.5,2679.0,0.00193751]
[1643825524273,1.5929128,2679.4,2679.0,0.00193751]
[1643825524473,2.06432554,2679.3,2679.0,0.00193751]
[1643825524675,0.01,2679.2,2678.7,0.78106706]
[1643825524875,0.01,2679.3,2678.7,0.77106706]
[1643825525074,0.01,2679.5,2678.7,0.77106706]
[1643825525274,1.58304542,2679.4,2678.8,0.00193751]
[1643825525475,0.01,2679.3,2678.8,0.00193751]
[1643825525875,0.01,2679.6,2678.8,0.00193751]
[1643825526075,1.58309543,2679.5,2678.8,0.00193751]
[1643825526365,0.01,2679.4,2678.8,0.00193751]
[1643825526653,0.01,2679.4,2679.0,0.78328602]
[1643825526852,0.01,2679.6,2679.0,0.78328602]
[1643825527054,1.5830059,2679.5,2679.0,0.78328602]
[1643825527256,0.01,2679.4,2679.0,0.78328602]
[1643825527656,0.01,2679.7,2679.2,0.00568477]
[1643825528055,0.00568326,2679.9,2679.3,0.1865]
[1643825528255,0.00568326,2679.9,2679.3,0.19858653]
[1643825528456,0.00568326,2679.9,2679.8,5.28385245]
[1643825528654,0.00568326,2679.9,2679.8,5.29385245]
[1643825528855,0.00568363,2679.9,2679.8,5.48035245]
[1643825529058,0.00568363,2679.9,2679.8,4.5965]
[1643825529255,0.00568363,2679.9,2679.8,0.01]
[1643825529457,0.00568363,2679.9,2679.5,0.1965]
[1643825529755,1.58279825,2679.8,2679.5,0.1965]
[1643825529954,0.01,2679.7,2679.4,0.01568502]
[1643825530171,0.01,2679.7,2679.4,0.00568502]
[1643825530374,0.17193367,2679.9,2679.4,0.00568502]
[1643825530672,1.5828305,2679.8,2679.4,0.00568502]
[1643825530871,0.01,2679.7,2679.1,0.92087918]
[1643825531272,0.17761736,2679.9,2679.4,0.00568478]
[1643825531470,1.58282966,2679.8,2679.4,0.00568478]
[1643825531675,0.01,2679.7,2679.4,0.00568478]
[1643825532074,0.18193367,2679.9,2679.2,0.01]
[1643825532273,1.58283663,2679.8,2679.2,0.01]
[1643825532472,0.01,2679.7,2679.4,0.00540952]
[1643825532872,0.17734215,2679.9,2679.4,0.00540952]
[1643825533073,1.58282403,2679.8,2679.4,0.00540952]
[1643825533274,1.58282403,2679.8,2679.2,0.01]
[1643825533275,0.01,2679.7,2679.2,0.01]
[1643825533474,0.01,2679.7,2678.9,0.1965]
[1643825533674,0.17734227,2679.9,2679.4,0.00540963]
[1643825533925,1.58289026,2679.8,2679.4,0.00540963]
[1643825534123,0.01,2679.7,2679.4,0.00540963]
[1643825534524,0.17193367,2679.9,2679.3,0.67813733]
[1643825534826,1.58284885,2679.8,2679.4,0.00540952]
[1643825535024,0.01,2679.7,2679.4,0.00540952]
[1643825535424,0.17734215,2679.9,2679.4,0.00540952]
[1643825535624,1.58282882,2679.8,2679.4,0.00540952]
[1643825535824,0.01,2679.7,2679.3,0.67813733]
[1643825536124,0.01,2679.7,2679.4,0.00568466]
[1643825536324,0.17761724,2679.9,2679.4,0.00568466]
[1643825536525,1.58283191,2679.8,2679.4,0.00568466]
[1643825536725,0.01,2679.7,2679.4,0.00568466]
[1643825537126,0.17761724,2679.9,2679.4,0.00568466]
[1643825537426,1.58284185,2679.8,2679.4,0.00568472]
[1643825537671,0.01,2679.7,2679.4,0.00568472]
[1643825538070,0.1776173,2679.9,2679.4,0.00568472]
[1643825538270,1.58287065,2679.8,2679.4,0.00568472]
[1643825538471,0.01,2679.7,2679.4,0.00568466]
[1643825538870,0.00568357,2679.9,2679.4,0.01568466]
[1643825539270,0.01,2680.1,2679.4,0.01]
[1643825539475,0.20154443,2680.1,2679.4,0.01]
[1643825539671,0.20154443,2680.1,2679.4,0.01219999]
[1643825539970,1.58271194,2680.0,2679.4,0.01219999]
[1643825540172,0.01,2679.9,2679.4,0.94515999]
[1643825540571,0.20154443,2680.1,2679.7,0.83872772]
[1643825540772,1.58270569,2680.0,2679.5,0.01]
[1643825540972,0.01,2679.9,2679.4,0.94515999]
[1643825541419,0.19154443,2680.1,2679.4,0.94515999]
[1643825541623,1.58276172,2680.0,2679.4,0.94515999]
[1643825541820,0.01,2679.9,2679.7,0.85667051]
[1643825542025,0.01,2679.9,2679.5,0.01]
[1643825542223,0.1965,2680.4,2679.4,0.94515999]
[1643825542421,1.5827395,2680.3,2679.4,0.94515999]
[1643825542622,0.01,2680.2,2679.4,0.94515999]
[1643825542823,1.7542341,2680.1,2679.4,0.94515999]
[1643825543022,1.5927395,2680.0,2679.4,0.94296]
[1643825543222,1.5927395,2679.9,2679.4,0.94856425]
[1643825543423,1.5927395,2679.8,2679.4,0.94856425]
[1643825543623,0.01,2679.7,2679.4,0.94856425]
[1643825543825,0.00560296,2680.0,2679.5,0.68577102]
[1643825544024,1.58276805,2679.9,2679.5,0.01]
[1643825544225,1.58276805,2679.9,2679.3,0.01]
[1643825544226,1.99267526,2679.8,2679.3,0.01]
[1643825544426,1.59276805,2679.7,2679.4,0.00560388]
[1643825544628,1.59276805,2679.6,2679.4,0.00560388]
[1643825544828,1.59276805,2679.5,2679.4,0.00560388]
[1643825545685,1.59276805,2679.5,2679.0,0.1965]
[1643825545885,1.59276805,2679.4,2679.0,0.1965]
[1643825546084,3.07316348,2680.0,2679.0,0.1965]
[1643825546085,1.59276805,2679.3,2679.0,0.1965]
[1643825546285,0.01,2679.2,2679.0,1.12954]
[1643825546485,0.01,2679.8,2679.1,0.01]
[1643825546686,1.5828273,2679.7,2679.1,0.01]
[1643825546888,0.01,2679.6,2679.1,0.01]
[1643825547086,1.5828273,2679.5,2679.2,0.93305]
[1643825547290,0.01,2679.4,2679.2,0.93305]
[1643825547487,0.01,2679.8,2679.3,4.07112214]
[1643825547686,0.01,2679.8,2679.3,5.00413214]
[1643825547687,1.58274168,2679.7,2679.3,5.00413214]
[1643825547887,0.01,2679.6,2679.4,0.01]
[1643825548288,0.00534251,2680.0,2679.4,0.01]
[1643825548488,1.58271122,2679.9,2679.4,0.01]
[1643825548689,0.01,2679.8,2679.4,0.94297]
[1643825548935,1.58271122,2679.7,2679.4,0.94297]
[1643825549132,0.01,2679.6,2679.4,0.94297]
[1643825549331,0.01,2679.6,2679.4,0.94831412]
[1643825549531,0.00534294,2680.0,2679.4,2.81407412]
[1643825549731,0.00534294,2680.0,2679.6,0.17254166]
[1643825549732,1.58268066,2679.9,2679.6,0.17254166]
[1643825549937,1.58268066,2679.9,2679.8,3.59009878]
[1643825550333,1.58268066,2680.2,2679.8,3.59009878]
[1643825550536,0.00567181,2680.0,2679.8,0.89009878]
[1643825550734,1.58268066,2679.9,2679.8,0.89009878]
[1643825552033,1.58268066,2679.9,2679.5,1.86561]
[1643825552236,1.58268066,2679.9,2679.5,2.16561]
[1643825552432,1.58268066,2679.9,2679.5,0.3]
[1643825553172,1.58268066,2679.9,2679.5,1.08843066]
[1643825554073,1.58268066,2679.9,2679.5,0.3]
[1643825554272,1.58268066,2679.9,2679.4,0.19148771]
[1643825554472,1.58268066,2679.9,2679.4,0.00498771]
[1643825555073,1.58268066,2679.9,2679.4,0.68553308]
[1643825555276,1.58268066,2679.9,2679.4,0.68553303]
[1643825556327,1.58268066,2679.9,2679.2,0.3]
[1643825556527,1.58268066,2679.8,2679.4,0.00487425]
[1643825556724,0.19855678,2680.0,2679.4,0.00487425]
[1643825556725,1.58268066,2679.7,2679.4,0.00487425]
[1643825556925,1.58268066,2679.6,2679.4,0.00487425]
[1643825557329,1.58268066,2679.5,2679.0,0.1865]
[1643825557529,1.58268066,2679.4,2679.0,0.1865]
[1643825557732,1.58268066,2679.4,2678.8,0.00193751]
[1643825557733,3.55204389,2679.3,2678.8,0.00193751]
[1643825557931,1.58268066,2679.2,2678.6,0.00193751]
[1643825558127,1.58268066,2679.1,2678.6,0.00193751]
[1643825559027,1.98709677,2679.0,2678.6,0.00193751]
[1643825559233,1.58268066,2678.9,2678.6,0.00193751]
[1643825559427,1.58268066,2678.9,2678.5,0.08819997]
[1643825559629,1.58268066,2678.8,2678.4,0.00193751]
[1643825559830,2.28396749,2679.2,2678.4,0.00193751]
[1643825560084,1.58324171,2679.1,2678.4,0.82034853]
[1643825561287,2.00759753,2679.0,2678.6,0.00558798]
[1643825561487,1.58324171,2678.9,2678.6,0.00558798]
[1643825562283,1.58324171,2678.9,2678.4,0.00193751]
[1643825562487,1.58324171,2678.9,2678.6,0.00558798]
[1643825562687,1.58324171,2678.8,2678.6,0.00558798]
[1643825562886,1.58324171,2679.0,2678.6,0.00558798]
[1643825563385,1.58324171,2679.0,2678.4,0.00193751]
[1643825564225,1.58324171,2679.0,2678.5,0.93329]
[1643825564427,0.1865,2679.5,2678.6,0.00193751]
[1643825564627,1.58308497,2679.4,2678.6,0.00193751]
[1643825565027,1.58308497,2679.4,2678.8,0.9331]
[1643825565227,1.58308497,2679.4,2678.7,1.62270049]
[1643825565427,1.58308497,2679.4,2678.7,2.55586049]
[1643825565730,1.58308497,2679.4,2678.7,3.10875049]
[1643825566327,1.58308497,2679.4,2679.2,0.88010879]
[1643825566827,0.0051972,2679.6,2679.2,0.88010879]
[1643825567027,1.58293454,2679.5,2679.2,0.88010879]
[1643825567427,1.58293454,2679.4,2679.2,0.88530716]
[1643825567691,0.00519746,2679.6,2679.2,0.88530716]
[1643825567892,1.58293063,2679.5,2679.2,0.88530716]
[1643825568091,1.58293063,2679.5,2679.2,0.00519837]
[1643825568294,1.58293063,2679.5,2679.2,0.93307]
[1643825568490,1.58293063,2679.4,2679.3,0.0052108]
[1643825568691,1.58293063,2679.4,2679.2,0.8582808]
[1643825568892,0.00521009,2679.6,2679.2,0.8582808]
[1643825569290,1.58293766,2679.5,2679.2,0.8582808]
[1643825569891,1.58293766,2679.4,2679.2,0.8582808]
[1643825570093,1.5829416,2679.3,2679.2,0.8582808]
[1643825570291,1.5829416,2679.3,2679.0,3.73224]
[1643825570495,1.5829416,2679.3,2678.8,1.3582]
[1643825570496,1.5829416,2679.2,2678.8,0.1865]
[1643825570693,1.5829416,2679.1,2678.7,3.17383751]
[1643825570896,1.5829416,2679.0,2678.7,0.00193751]
[1643825571095,0.1865,2679.5,2679.1,0.00238327]
[1643825571332,1.58315613,2679.4,2679.1,0.00238327]
[1643825571735,2.31760569,2679.3,2679.1,0.00238327]
[1643825571930,1.76965613,2679.2,2679.1,0.00238327]
[1643825572131,1.76965613,2679.2,2678.7,0.00193751]
[1643825572332,0.1865,2679.2,2679.1,0.00567246]
[1643825572533,1.76967755,2679.2,2679.1,0.00567246]
[1643825572734,3.65472394,2679.2,2679.1,0.00567246]
[1643825572934,1.76967755,2679.2,2679.1,0.00567246]
[1643825573333,1.76967755,2679.2,2678.5,0.00193751]
[1643825573537,1.58317755,2679.1,2679.0,0.00567255]
[1643825574333,1.58317755,2679.1,2678.5,0.02463248]
[1643825574334,1.58317755,2679.1,2678.5,0.93525751]
[1643825574537,1.58317755,2679.1,2678.9,0.00567264]
[1643825574735,1.58317755,2679.0,2678.9,0.00567264]
[1643825574935,1.58317755,2679.2,2678.9,0.00567264]
[1643825575173,1.58317755,2679.1,2678.9,0.00567264]
[1643825575371,1.58317755,2679.0,2678.9,0.00567264]
[1643825575575,1.58317755,2679.2,2678.9,0.00567264]
[1643825576472,0.15762787,2679.0,2678.9,0.00567264]
[1643825576774,2.58959051,2679.0,2678.9,0.00567264]
[1643825576973,1.00641296,2679.0,2678.9,0.00519426]
[1643825577175,2.58959051,2679.0,2678.9,0.00519426]
[1643825577376,2.58959051,2679.0,2678.5,0.02078062]
[1643825577575,1.58317755,2678.9,2678.5,0.02078062]
[1643825578175,1.58317755,2678.9,2678.4,0.00193751]
[1643825579626,1.58317755,2678.9,2678.5,0.00206569]
[1643825580227,1.58317755,2678.9,2678.4,0.00193751]
[1643825580426,3.58136668,2678.9,2678.4,0.00193751]
[1643825580627,1.58317755,2678.8,2678.6,0.00535875]
[1643825580830,0.15762787,2679.0,2678.6,0.00535875]
[1643825580831,3.65636833,2678.7,2678.6,0.00535875]
[1643825581234,1.58317755,2678.7,2678.6,0.00535875]
[1643825581427,1.76967755,2678.8,2678.1,0.02143878]
[1643825581632,1.58317755,2678.7,2678.1,0.02143878]
[1643825581830,3.64905941,2678.7,2678.1,0.00193751]
[1643825582028,1.58317755,2678.6,2678.1,0.00193751]
[1643825582429,1.58317755,2678.6,2677.9,0.00193751]
[1643825582875,2.06588186,2678.7,2678.2,0.00549124]
[1643825583977,0.8031901,2678.7,2677.9,0.00193751]
[1643825584173,0.8031901,2678.7,2678.3,0.00549116]
[1643825584775,0.1865,2678.8,2678.3,0.00549116]
[1643825585175,2.22356754,2678.8,2677.9,0.02390544]
[1643825585377,2.22356754,2678.8,2677.9,0.00193751]
[1643825586074,2.73256754,2678.8,2677.9,0.00193751]
[1643825586329,0.93865804,2678.6,2677.9,0.00193751]
[1643825586533,2.73256754,2678.8,2677.9,0.00193751]
[1643825586727,2.73256754,2678.8,2678.2,0.00531869]
[1643825587524,0.7058027,2678.7,2677.9,0.00193751]
[1643825587724,2.72039373,2678.7,2678.4,0.00531856]
[1643825588723,2.72039373,2678.7,2677.9,0.00193751]
[1643825588924,2.72039373,2678.7,2678.4,0.00549771]
[1643825589525,0.539,2678.6,2678.4,0.00549771]
[1643825589826,0.539,2678.6,2677.9,0.00193751]
[1643825590274,0.539,2678.6,2678.4,0.00555722]
[1643825590477,0.539,2678.9,2678.4,0.00555722]
[1643825590673,0.1865,2679.0,2678.4,0.00555722]
[1643825590875,0.539,2678.9,2678.4,0.00555722]
[1643825591477,0.15082544,2678.8,2678.6,0.00555709]
[1643825592276,0.15082544,2678.8,2678.2,0.00193751]
[1643825592476,0.15082544,2678.8,2678.6,0.00506713]
[1643825593578,0.15082544,2678.8,2678.2,0.00193751]
[1643825593825,0.15082544,2678.8,2678.6,0.00506815]
[1643825594827,1.15082544,2678.8,2677.8,0.18843751]
[1643825595029,3.53562658,2678.7,2678.6,0.00506815]
[1643825595230,4.53562658,2678.7,2678.6,0.00506815]
[1643825595628,11.03562658,2678.7,2678.6,0.00506815]
[1643825595828,11.03562658,2678.7,2678.0,0.8388335]
[1643825596029,11.03562658,2678.7,2678.1,0.00193751]
[1643825596230,11.03562658,2678.7,2678.5,0.00540794]
[1643825596431,2.18917748,2678.6,2678.5,0.00540794]
[1643825596630,2.72817748,2678.6,2678.5,0.00540794]
[1643825597430,2.72817748,2678.6,2677.8,0.00193751]
[1643825597431,2.72817748,2678.6,2678.4,0.00551223]
[1643825597682,2.07881355,2678.5,2678.4,0.00551223]
[1643825598082,2.61781355,2678.5,2678.4,0.00551223]
[1643825598280,2.61781355,2678.5,2677.8,0.00193751]
[1643825599587,0.1865,2678.9,2677.8,0.00193751]
[1643825599787,0.1865,2678.9,2677.9,0.1865]
[1643825599788,0.00313669,2678.9,2677.9,0.1865]
[1643825599984,0.00313669,2678.9,2678.0,0.00193751]
[1643825600184,0.00313669,2678.9,2678.1,0.1865]
[1643825600587,0.00313669,2678.9,2678.8,2.35]
[1643825600786,3.8189,2679.4,2678.8,2.35]
[1643825600987,0.00549809,2678.9,2678.8,2.35]
[1643825602427,2.88098707,2679.5,2678.7,0.00193751]
[1643825602428,0.00549826,2679.0,2678.7,0.00193751]
[1643825602930,1.5834065,2678.9,2678.7,0.00193751]
[1643825604730,1.5834065,2678.8,2678.7,0.00193751]
[1643825604929,1.5834065,2678.8,2678.5,1.86664]
[1643825605775,1.5834065,2678.7,2678.5,1.86664]
[1643825605975,0.00509462,2678.9,2678.6,3.73683148]
[1643825606178,1.58338829,2678.8,2678.6,3.73683148]
[1643825606477,0.00509462,2678.9,2678.7,6.43329]
[1643825606980,0.00509462,2678.9,2678.7,6.73329]
[1643825607179,0.00541043,2678.9,2678.8,6.76638]
[1643825607576,0.00541043,2678.9,2678.8,6.92238595]
[1643825607977,0.00541043,2678.9,2678.8,7.10888595]
[1643825608381,0.86088802,2679.8,2678.8,7.10888595]
[1643825608382,0.00541038,2679.0,2678.8,7.10888595]
[1643825608576,0.00541038,2679.0,2678.9,4.6865]
[1643825608839,1.5886042,2679.0,2678.9,4.6865]
[1643825609028,1.5886042,2679.0,2678.9,5.61968]
[1643825609431,1.5831946,2679.0,2678.9,5.61968]
[1643825609634,0.00509984,2679.1,2678.9,5.43318]
[1643825609831,0.00509984,2679.1,2678.9,6.3663784]